bitfinex-derivatives/quotes_SOLF0:USTF0_20241212
["timestamp","ask_amount","ask_price","bid_price","bid_amount"]
[1734008129454,15.16721752,231.33,231.19,2.7567]
[1734008130649,2.1615,231.27,231.22,2.1619]
[1734008130958,2.1615,231.27,231.2,5.19416773]
[1734008131154,2.4,231.28,231.25,2.1616]
[1734008132161,2.1612,231.3,231.2,5.19416773]
[1734008132162,2.4,231.32,231.22,12.72721752]
[1734008133658,2.4,231.32,231.29,2.1612]
[1734008133855,2.4,231.33,231.29,2.1612]
[1734008134662,4.5608,231.33,231.29,2.1612]
[1734008135158,12.96,231.58,231.25,12.72721752]
[1734008135462,2.1605,231.37,231.32,2.1609]
[1734008135853,2.1606,231.36,231.25,12.72721752]
[1734008136267,2.4,231.37,231.07,32.12575574]
[1734008136268,12.72721752,231.31,231.14,23.71060684]
[1734008136456,12.72721752,231.31,231.16,2.8137]
[1734008136457,2.1614,231.27,231.16,2.8137]
[1734008136759,2.4,231.3,231.19,5.17569978]
[1734008136955,2.1614,231.28,231.19,5.17569978]
[1734008137156,2.4,231.3,231.19,5.17569978]
[1734008139558,2.1613,231.29,231.23,2.1617]
[1734008140166,2.1614,231.28,231.22,2.1618]
[1734008142260,2.4,231.3,231.22,2.1618]
[1734008142459,2.1614,231.27,231.22,2.1618]
[1734008142666,12.72721752,231.28,231.16,2.8137]
[1734008142861,2.162,231.21,231.16,2.8137]
[1734008144166,2.4,231.22,231.17,2.1622]
[1734008144369,2.4,231.22,231.16,2.8137]
[1734008146660,2.4,231.22,231.18,2.1622]
[1734008148068,4.5619,231.22,231.18,2.1622]
[1734008148270,4.5619,231.22,231.16,1.3989]
[1734008148271,2.4,231.22,231.16,1.3989]
[1734008148470,2.4,231.22,231.1,1.4021]
[1734008149059,2.1623,231.17,231.1,1.4021]
[1734008149266,2.1623,231.17,231.11,8.15672827]
[1734008149564,2.1623,231.17,231.12,5.25218879]
[1734008149960,2.1623,231.17,231.1,1.4021]
[1734008149961,2.1625,231.15,231.1,1.4021]
[1734008150159,2.1625,231.15,231.1,9.55882827]
[1734008150366,2.4,231.17,231.05,2.7708]
[1734008150367,8.15672827,231.16,231.05,2.7708]
[1734008150570,2.1626,231.14,231.09,2.163]
[1734008150768,2.1626,231.14,231.08,8.15672827]
[1734008150965,2.1626,231.14,231.1,8.15672827]
[1734008151165,2.1625,231.16,231.06,12.74565395]
[1734008151365,2.1625,231.16,231.09,5.11669197]
[1734008152061,2.1626,231.15,231.06,12.74565395]
[1734008152268,2.4,231.17,231.06,12.74565395]
[1734008152667,2.4,231.17,231.13,2.1627]
[1734008154266,4.5623,231.17,231.13,2.1627]
[1734008154765,2.4,231.19,231.14,2.1626]
[1734008155063,2.1623,231.18,231.14,2.1626]
[1734008155764,2.4,231.19,231.16,2.1624]
[1734008155970,2.4,231.19,231.09,15.14565395]
[1734008156767,2.1622,231.18,231.14,2.1625]
[1734008163383,2.1622,231.18,231.15,2.1625]
[1734008164181,2.1622,231.18,231.09,12.74565395]
[1734008164382,2.1622,231.18,231.14,2.1626]
[1734008166278,2.1622,231.18,231.09,12.74565395]
[1734008166478,4.5622,231.19,231.15,2.1625]
[1734008166684,4.5622,231.19,231.1,1.3913]
[1734008167485,2.4,231.19,231.1,1.3913]
[1734008167784,2.38,231.22,231.1,1.3913]
[1734008168087,4.5417,231.24,231.2,2.162]
[1734008168387,5.25706034,231.32,231.13,2.7772]
[1734008168388,2.38,231.25,231.13,2.7772]
[1734008169188,2.1619,231.22,231.15,2.1624]
[1734008169385,2.38,231.25,231.15,2.1624]
[1734008169787,2.1622,231.19,231.15,2.1624]
[1734008169982,2.38,231.25,231.15,2.1624]
[1734008170189,12.74565395,231.23,231.15,2.1624]
[1734008171289,8.15589074,231.19,231.15,2.1624]
[1734008172685,2.1623,231.18,231.15,2.1624]
[1734008174082,2.1621,231.19,231.13,2.7772]
[1734008174391,10.31799074,231.19,231.16,2.1624]
[1734008179595,5.25706034,231.32,231.2,2.162]
[1734008179596,2.1618,231.24,231.2,2.162]
[1734008180891,2.1618,231.23,231.2,2.162]
[1734008181293,2.1619,231.22,231.14,10.53589074]
[1734008181488,8.15589074,231.23,231.14,2.38]
[1734008181695,8.15589074,231.23,231.14,10.53589074]
[1734008181996,2.1618,231.23,231.17,8.15589074]
[1734008182199,10.53589074,231.24,231.17,8.15589074]
[1734008182390,10.53589074,231.24,231.21,2.1619]
[1734008182607,10.53589074,231.24,231.17,8.15589074]
[1734008182892,8.15589074,231.24,231.17,8.15589074]
[1734008183593,8.15589074,231.24,231.22,2.1618]
[1734008183789,10.31739074,231.26,231.17,8.15589074]
[1734008184503,10.31739074,231.26,231.22,2.1618]
[1734008186091,10.31739074,231.26,231.23,2.1617]
[1734008187199,8.15589074,231.27,231.25,2.1616]
[1734008187701,2.1613,231.28,231.25,2.1616]
[1734008188599,3.27463,231.34,231.27,8.15589074]
[1734008188990,1.11383,231.34,231.27,8.15589074]
[1734008189195,1.11383,231.34,231.31,2.161]
[1734008189495,1.11383,231.34,231.32,8.15589074]
[1734008189690,1.11383,231.34,231.33,2.1608]
[1734008190598,10.41589074,231.4,231.32,8.15589074]
[1734008190799,2.1604,231.38,231.34,2.1607]
[1734008191203,10.31629074,231.38,231.34,2.1607]
[1734008191497,8.15589074,231.37,231.33,2.1608]
[1734008192100,8.15589074,231.37,231.34,2.1607]
[1734008193000,2.1604,231.38,231.34,2.1607]
[1734008193404,10.41589074,231.4,231.35,2.1606]
[1734008193604,5.18407128,231.45,231.34,8.15589074]
[1734008193800,8.15589074,231.43,231.34,8.15589074]
[1734008194001,8.15589074,231.41,231.33,2.6403]
[1734008194497,2.26,231.44,231.33,2.6403]
[1734008194804,8.15589074,231.41,231.33,2.6403]
[1734008195000,2.1602,231.4,231.36,2.1605]
[1734008195207,2.26,231.44,231.33,10.79619074]
[1734008195699,8.15589074,231.39,231.33,2.6403]
[1734008195905,8.15589074,231.37,231.33,2.6403]
[1734008196107,2.26,231.44,231.33,2.6403]
[1734008196704,2.1601,231.41,231.35,10.31649074]
[1734008197003,8.15589074,231.43,231.35,8.15589074]
[1734008197799,2.1601,231.41,231.35,10.31639074]
[1734008198197,2.1601,231.41,231.35,8.15589074]
[1734008199298,2.26,231.44,231.35,8.15589074]
[1734008199505,8.15589074,231.43,231.35,8.15589074]
[1734008200109,10.31579074,231.43,231.37,2.1604]
[1734008200703,2.1599,231.43,231.37,2.1604]
[1734008200907,10.31579074,231.43,231.37,2.1604]
[1734008201208,10.31579074,231.43,231.35,8.15589074]
[1734008201209,10.31579074,231.43,231.38,2.1604]
[1734008202206,8.15589074,231.43,231.38,2.1604]
[1734008202404,2.26,231.44,231.38,2.1604]
[1734008202607,10.41589074,231.44,231.35,8.15589074]
[1734008202805,8.15589074,231.44,231.35,8.15589074]
[1734008203105,8.15589074,231.44,231.37,8.15589074]
[1734008203304,1.02845,231.46,231.39,8.15589074]
[1734008203507,1.02845,231.46,231.41,8.15589074]
[1734008203711,1.02845,231.46,231.45,8.15589074]
[1734008203912,2.1587,231.56,231.45,8.15589074]
[1734008204116,8.15589074,231.53,231.45,8.15589074]
[1734008204304,8.15589074,231.51,231.45,2.1596]
[1734008205303,2.159,231.53,231.46,2.1596]
[1734008205506,8.15589074,231.52,231.46,2.1596]
[1734008206412,8.15589074,231.52,231.47,2.1595]
[1734008208109,8.15589074,231.52,231.45,2.1596]
[1734008208110,2.1592,231.51,231.45,2.1596]
[1734008208510,2.1592,231.51,231.43,9.52429074]
[1734008208712,2.7938,231.6,231.43,1.3684]
[1734008209013,8.15589074,231.57,231.49,8.15589074]
[1734008209413,2.1585,231.59,231.53,2.1589]
[1734008209614,2.6671,231.66,231.53,8.15589074]
[1734008209808,8.15589074,231.6,231.53,8.15589074]
[1734008210710,8.15589074,231.6,231.56,2.1586]
[1734008211511,8.15589074,231.6,231.53,8.15589074]
[1734008211707,10.31429074,231.6,231.54,2.1588]
[1734008211906,8.15589074,231.6,231.54,2.1588]
[1734008212812,8.15589074,231.6,231.52,2.159]
[1734008213414,2.1587,231.56,231.52,2.159]
[1734008214112,2.1588,231.55,231.51,2.1591]
[1734008214614,2.1588,231.55,231.51,10.31499074]
[1734008215924,2.1586,231.57,231.52,2.159]
[1734008216121,8.15589074,231.59,231.52,2.159]
[1734008216418,8.15589074,231.59,231.51,8.15589074]
[1734008217115,2.1589,231.54,231.49,8.15589074]
[1734008217510,5.09126634,231.65,231.46,0.222]
[1734008217511,2.1593,231.5,231.46,0.222]
[1734008217914,8.15589074,231.49,231.46,0.222]
[1734008218114,2.1595,231.47,231.46,0.222]
[1734008219918,8.15589074,231.5,231.46,0.222]
[1734008220113,8.15589074,231.52,231.46,0.222]
[1734008220717,2.1592,231.51,231.47,2.1595]
[1734008221422,2.1592,231.5,231.46,2.3816]
[1734008222514,5.09126634,231.65,231.46,0.222]
[1734008222723,2.1588,231.55,231.51,2.1591]
[1734008222919,2.44,231.64,231.52,8.15589074]
[1734008223113,8.15589074,231.6,231.52,8.15589074]
[1734008223315,2.1586,231.58,231.54,10.31469074]
[1734008223521,8.15589074,231.62,231.54,8.15589074]
[1734008223920,8.15589074,231.62,231.56,2.1587]
[1734008224118,8.15589074,231.62,231.54,8.15589074]
[1734008224319,5.09126634,231.65,231.57,2.1586]
[1734008224320,2.1582,231.61,231.57,2.1586]
[1734008224920,2.1584,231.6,231.55,2.1587]
[1734008225126,8.15589074,231.62,231.55,2.1587]
[1734008225719,2.1584,231.6,231.54,8.15589074]
[1734008226016,1.3474,231.66,231.56,8.15589074]
[1734008226224,8.15589074,231.65,231.56,8.15589074]
[1734008226420,8.15589074,231.63,231.56,8.15589074]
[1734008226917,8.15589074,231.64,231.56,8.15589074]
[1734008227221,2.1582,231.62,231.53,12.6949217]
[1734008227613,3.7874,231.66,231.53,12.6949217]
[1734008227927,2.158,231.63,231.53,12.6949217]
[1734008228226,2.158,231.63,231.54,5.2708796]
[1734008228927,12.6949217,231.65,231.54,5.2708796]
[1734008229123,1.3474,231.66,231.55,2.1587]
[1734008229316,12.6949217,231.65,231.55,2.1587]
[1734008231519,2.1584,231.59,231.55,2.1587]
[1734008231825,2.1588,231.55,231.52,1.3601]
[1734008232024,2.44,231.61,231.5,2.1592]
[1734008232220,2.44,231.61,231.48,2.44]
[1734008232431,2.44,231.61,231.53,2.1589]
[1734008233727,2.1586,231.57,231.53,2.1589]
[1734008234322,2.1588,231.56,231.51,2.1591]
[1734008234522,2.44,231.61,231.48,2.44]
[1734008235129,2.44,231.61,231.46,14.3775917]
[1734008235636,2.1589,231.54,231.5,2.1592]
[1734008235927,2.1589,231.54,231.46,14.3775917]
[1734008236326,2.159,231.53,231.49,2.1593]
[1734008236533,2.54,231.55,231.46,0.24217]
[1734008236725,12.6949217,231.59,231.46,0.24217]
[1734008236726,2.54,231.54,231.46,0.24217]
[1734008237428,2.1592,231.51,231.47,2.1595]
[1734008239333,2.54,231.54,231.46,0.24217]
[1734008240733,2.1591,231.52,231.48,2.1594]
[1734008240933,2.54,231.54,231.46,12.9370917]
[1734008242039,2.54,231.54,231.51,2.1591]
[1734008242436,2.1588,231.55,231.51,2.1591]
[1734008243931,2.3693,231.65,231.46,2.78217]
[1734008244131,2.54,231.64,231.49,12.6949217]
[1734008244536,2.1586,231.58,231.54,2.1588]
[1734008244837,2.54,231.64,231.49,12.6949217]
[1734008245332,2.3693,231.65,231.49,12.6949217]
[1734008245534,2.54,231.63,231.49,12.6949217]
[1734008245731,2.54,231.63,231.54,2.1588]
[1734008246134,2.1583,231.61,231.54,2.1588]
[1734008246339,2.54,231.63,231.54,2.1588]
[1734008246733,2.1586,231.58,231.49,12.6949217]
[1734008246933,2.3693,231.65,231.5,2.1592]
[1734008246934,2.54,231.6,231.5,2.1592]
[1734008247133,2.54,231.59,231.5,2.1592]
[1734008247739,2.159,231.53,231.5,2.1592]
[1734008247939,2.54,231.59,231.48,2.1593]
[1734008248839,2.54,231.59,231.46,12.9370917]
[1734008248840,2.54,231.59,231.46,0.24217]
[1734008249050,12.6949217,231.57,231.46,0.24217]
[1734008249238,8.13433301,231.51,231.46,0.24217]
[1734008250041,2.1594,231.49,231.46,0.24217]
[1734008251142,2.54,231.52,231.46,0.24217]
[1734008251343,2.1595,231.47,231.46,0.24217]
[1734008254749,15.24956894,231.52,231.4,2.1601]
[1734008255244,15.24956894,231.52,231.35,1.4055]
[1734008255449,15.24956894,231.52,231.37,12.70956894]
[1734008255645,15.24956894,231.52,231.39,2.1602]
[1734008255946,2.1598,231.44,231.37,17.89615013]
[1734008257254,2.1599,231.43,231.39,2.1603]
[1734008257745,2.54,231.46,231.37,5.18658119]
[1734008257948,2.54,231.46,231.35,1.4055]
[1734008258344,2.54,231.46,231.4,2.1602]
[1734008258345,2.1597,231.45,231.4,2.1602]
[1734008258745,2.54,231.46,231.36,5.15183125]
[1734008258946,2.16,231.42,231.38,2.1604]
[1734008260451,2.54,231.46,231.38,2.1604]
[1734008260641,2.1599,231.43,231.38,2.1604]
[1734008260848,2.54,231.46,231.38,2.1604]
[1734008261044,2.1598,231.44,231.39,2.1603]
[1734008261443,2.54,231.46,231.36,5.15183125]
[1734008261752,2.1597,231.45,231.41,2.1601]
[1734008262149,2.54,231.46,231.41,2.1601]
[1734008262453,2.54,231.5,231.38,12.70956894]
[1734008263061,2.54,231.51,231.38,12.70956894]
[1734008263256,2.54,231.51,231.41,12.70956894]
[1734008263861,2.5,231.52,231.44,2.1598]
[1734008265654,2.1594,231.48,231.44,2.1598]
[1734008265852,2.5,231.52,231.45,2.1597]
[1734008266056,2.5,231.52,231.41,12.70956894]
[1734008266252,2.1592,231.51,231.41,12.70956894]
[1734008266462,2.1592,231.51,231.46,2.1596]
[1734008267561,2.1593,231.5,231.46,2.1596]
[1734008268460,2.1594,231.49,231.42,1.3608]
[1734008270759,2.1594,231.49,231.45,2.1597]
[1734008271160,2.1594,231.49,231.45,10.29320229]
[1734008271853,2.5,231.52,231.45,8.13350229]
[1734008272058,2.1592,231.51,231.47,10.29300229]
[1734008272253,2.5,231.55,231.49,8.13350229]
[1734008272457,2.3262,231.65,231.51,8.13350229]
[1734008272659,8.13350229,231.59,231.45,2.5]
[1734008272859,2.5,231.62,231.55,8.13350229]
[1734008273163,2.1584,231.59,231.55,8.13350229]
[1734008273363,10.63350229,231.62,231.55,8.13350229]
[1734008274263,10.63350229,231.62,231.55,10.29230229]
[1734008274865,2.1583,231.6,231.55,10.29230229]
[1734008275065,10.63350229,231.62,231.55,10.29230229]
[1734008275359,2.5,231.62,231.55,10.29230229]
[1734008275763,8.13350229,231.63,231.55,10.29230229]
[1734008275958,2.1583,231.6,231.56,2.1587]
[1734008276159,10.63350229,231.63,231.56,2.1587]
[1734008276460,10.63350229,231.63,231.57,2.1585]
[1734008276666,2.1583,231.6,231.57,2.1585]
[1734008277066,10.63350229,231.63,231.45,2.5]
[1734008277266,2.1585,231.59,231.55,8.13350229]
[1734008277768,2.1583,231.6,231.57,8.13350229]
[1734008278164,2.5,231.64,231.57,8.13350229]
[1734008278364,2.1582,231.61,231.57,10.29200229]
[1734008279464,2.1582,231.61,231.58,2.1585]
[1734008279869,2.5,231.64,231.57,8.13350229]
[1734008280065,2.1581,231.63,231.59,8.13350229]
[1734008280971,2.1581,231.63,231.59,10.29190229]
[1734008281866,2.1578,231.66,231.61,10.29160229]
[1734008282075,8.13350229,231.72,231.63,8.13350229]
[1734008282268,10.63350229,231.72,231.63,8.13350229]
[1734008282465,2.1576,231.68,231.63,10.29150229]
[1734008282869,2.1576,231.68,231.65,8.13350229]
[1734008283268,2.5,231.73,231.65,8.13350229]
[1734008283467,8.13350229,231.75,231.65,8.13350229]
[1734008283674,10.63350229,231.75,231.65,8.13350229]
[1734008283875,2.1575,231.7,231.65,10.29130229]
[1734008284276,10.63350229,231.75,231.65,10.29130229]
[1734008284277,2.1575,231.69,231.65,10.29130229]
[1734008284474,8.13350229,231.73,231.65,8.13350229]
[1734008285574,2.1575,231.69,231.65,8.13350229]
[1734008285775,8.13350229,231.69,231.6,8.13350229]
[1734008285971,8.13350229,231.67,231.58,2.5]
[1734008286179,8.13350229,231.67,231.58,10.29200229]
[1734008286774,8.13350229,231.65,231.58,10.29200229]
[1734008287078,2.1582,231.62,231.58,10.29200229]
[1734008287277,2.1582,231.62,231.58,2.1585]
[1734008287479,15.19415202,231.69,231.54,14.12595202]
[1734008287682,2.1583,231.6,231.54,14.12595202]
[1734008288078,15.19415202,231.69,231.54,14.12595202]
[1734008288375,2.1582,231.61,231.54,14.12595202]
[1734008288772,2.1582,231.61,231.56,2.1587]
[1734008289377,2.1583,231.6,231.56,2.1587]
[1734008289778,12.69415202,231.66,231.54,1.4318]
[1734008290083,2.1587,231.57,231.54,1.4318]
[1734008291183,2.5,231.63,231.53,2.7774]
[1734008291481,2.1587,231.56,231.53,2.7774]
[1734008292979,2.5,231.63,231.53,2.7774]
[1734008294281,2.46,231.65,231.53,2.7774]
[1734008295781,2.1581,231.63,231.58,2.1585]
[1734008295985,2.1581,231.63,231.54,14.08185202]
[1734008296184,2.46,231.68,231.57,12.69415202]
[1734008296384,2.46,231.7,231.57,12.69415202]
[1734008296987,2.1577,231.67,231.6,2.1583]
[1734008297198,2.46,231.7,231.6,2.1583]
[1734008297591,2.1579,231.65,231.6,2.1583]
[1734008298089,2.1582,231.62,231.54,14.08185202]
[1734008299487,2.1582,231.62,231.56,2.1586]
[1734008299793,2.1582,231.62,231.54,14.08185202]
[1734008300084,2.1582,231.62,231.54,16.54185202]
[1734008300498,2.46,231.7,231.54,16.54185202]
[1734008300791,2.46,231.7,231.57,2.1586]
[1734008301594,2.46,231.7,231.56,2.1587]
[1734008301595,2.1581,231.62,231.56,2.1587]
[1734008301993,2.46,231.69,231.54,16.54185202]
[1734008302192,2.158,231.63,231.57,2.1586]
[1734008302699,2.46,231.69,231.57,2.1586]
[1734008302993,2.46,231.69,231.58,2.1585]
[1734008303198,2.46,231.69,231.58,12.69415202]
[1734008303392,2.158,231.64,231.59,2.1584]
[1734008303593,2.46,231.69,231.55,12.69415202]
[1734008304092,2.1581,231.63,231.57,2.1586]
[1734008305791,2.1582,231.62,231.56,2.1587]
[1734008306297,2.1582,231.62,231.55,12.69415202]
[1734008307000,2.46,231.69,231.55,12.69415202]
[1734008307596,2.46,231.69,231.54,1.4064]
[1734008307597,12.69415202,231.67,231.54,1.4064]
[1734008308102,12.69415202,231.67,231.53,2.7774]
[1734008308301,1.3454,231.68,231.53,2.7774]
[1734008308504,2.1587,231.57,231.53,2.7774]
[1734008308700,2.46,231.61,231.53,2.7774]
[1734008309305,2.46,231.61,231.54,8.12716538]
[1734008309306,10.58716538,231.61,231.54,8.12716538]
[1734008309706,2.1588,231.55,231.54,8.12716538]
[1734008310599,2.1589,231.54,231.52,13.33467588]
[1734008310805,10.58716538,231.61,231.52,13.33467588]
[1734008311504,2.1588,231.55,231.52,13.33467588]
[1734008311797,2.46,231.63,231.54,8.12716538]
[1734008312005,2.46,231.63,231.56,8.12716538]
[1734008312196,2.46,231.63,231.58,8.12716538]
[1734008313204,2.1582,231.61,231.58,8.12716538]
[1734008314101,2.1584,231.59,231.58,8.12716538]
[1734008315703,2.46,231.69,231.58,8.12716538]
[1734008316009,2.46,231.69,231.61,8.12716538]
[1734008316010,10.58716538,231.69,231.61,8.12716538]
[1734008316201,2.1581,231.63,231.61,8.12716538]
[1734008319209,2.1582,231.62,231.61,8.12716538]
[1734008323113,2.1585,231.59,231.57,8.12716538]
[1734008323310,8.12716538,231.63,231.56,8.12716538]
[1734008323510,10.60716538,231.63,231.56,8.12716538]
[1734008323714,2.1585,231.58,231.56,8.12716538]
[1734008324817,2.1584,231.59,231.56,8.12716538]
[1734008328317,10.60716538,231.63,231.53,3.5629]
[1734008328522,8.12716538,231.59,231.52,8.12716538]
[1734008328718,2.48,231.63,231.5,8.12716538]
[1734008328719,8.12716538,231.57,231.5,8.12716538]
[1734008328922,2.1591,231.51,231.5,8.12716538]
[1734008329119,8.12716538,231.55,231.47,6.56620656]
[1734008329325,2.48,231.56,231.44,1.4154]
[1734008329326,8.12716538,231.53,231.44,1.4154]
[1734008329525,2.1595,231.48,231.46,8.12716538]
[1734008329724,8.12716538,231.53,231.43,0.2201]
[1734008330026,2.48,231.53,231.47,8.12716538]
[1734008330228,2.48,231.53,231.46,8.12716538]
[1734008331134,2.1595,231.48,231.43,5.37689303]
[1734008331322,8.12716538,231.52,231.46,8.12716538]
[1734008331932,2.1595,231.48,231.46,8.12716538]
[1734008332126,8.12716538,231.52,231.46,8.12716538]
[1734008332628,2.48,231.53,231.44,8.12716538]
[1734008332829,2.1595,231.47,231.44,8.12716538]
[1734008334631,8.12716538,231.52,231.44,8.12716538]
[1734008334632,2.1594,231.49,231.44,8.12716538]
[1734008335035,8.12716538,231.52,231.44,8.12716538]
[1734008335329,2.1593,231.5,231.44,8.12716538]
[1734008335625,8.12716538,231.52,231.44,8.12716538]
[1734008335827,2.1595,231.47,231.44,8.12716538]
[1734008338232,2.1594,231.49,231.46,8.12716538]
[1734008338932,8.12716538,231.54,231.46,8.12716538]
[1734008339133,2.48,231.53,231.5,8.12716538]
[1734008339330,2.48,231.54,231.5,8.12716538]
[1734008340341,2.7052,231.62,231.52,8.12716538]
[1734008340538,10.60716538,231.61,231.52,8.12716538]
[1734008341134,10.60716538,231.61,231.54,8.12716538]
[1734008341635,10.60716538,231.61,231.52,8.12716538]
[1734008341833,2.1589,231.55,231.52,8.12716538]
[1734008343335,8.12716538,231.59,231.52,8.12716538]
[1734008343529,7.63679038,231.61,231.47,8.12716538]
[1734008343530,8.12716538,231.55,231.47,8.12716538]
[1734008343728,10.60716538,231.55,231.47,8.12716538]
[1734008343933,2.1592,231.5,231.47,8.12716538]
[1734008345430,8.12716538,231.53,231.45,8.12716538]
[1734008345627,8.12716538,231.51,231.41,6.62473448]
[1734008345825,8.12716538,231.51,231.42,8.12716538]
[1734008346030,8.12716538,231.51,231.41,1.3615]
[1734008346235,8.12716538,231.51,231.42,8.12716538]
[1734008347641,2.1597,231.45,231.42,8.12716538]
[1734008348533,2.1597,231.45,231.42,10.28716538]
[1734008348731,2.1597,231.45,231.42,8.12716538]
[1734008349638,2.48,231.48,231.42,8.12716538]
[1734008349838,2.1599,231.44,231.42,8.12716538]
[1734008350141,2.48,231.48,231.42,8.12716538]
[1734008350741,2.1599,231.43,231.42,8.12716538]
[1734008350941,8.12716538,231.47,231.4,8.12716538]
[1734008351445,2.48,231.48,231.4,8.12716538]
[1734008351446,2.1597,231.45,231.4,8.12716538]
[1734008351639,10.60716538,231.48,231.4,8.12716538]
[1734008351846,10.60716538,231.48,231.42,8.12716538]
[1734008352646,2.48,231.48,231.42,8.12716538]
[1734008353040,2.1598,231.45,231.42,8.12716538]
[1734008353444,2.48,231.48,231.4,2.1602]
[1734008353640,2.1598,231.45,231.42,8.12716538]
[1734008353840,2.48,231.48,231.42,8.12716538]
[1734008355647,2.1598,231.44,231.42,8.12716538]
[1734008357047,2.1599,231.43,231.42,8.12716538]
[1734008357252,2.48,231.48,231.42,8.12716538]
[1734008357547,2.1598,231.45,231.42,8.12716538]
[1734008358044,2.48,231.48,231.42,8.12716538]
[1734008359638,2.1598,231.44,231.42,8.12716538]
[1734008360248,2.1597,231.46,231.42,8.12716538]
[1734008360449,2.48,231.48,231.42,8.12716538]
[1734008361150,1.398,231.54,231.44,8.12716538]
[1734008361151,8.12716538,231.52,231.44,8.12716538]
[1734008361350,2.46,231.53,231.46,8.12716538]
[1734008362354,2.1593,231.5,231.44,2.1597]
[1734008362652,8.12716538,231.5,231.42,8.12716538]
[1734008362865,8.12716538,231.52,231.44,8.12716538]
[1734008363046,8.12716538,231.52,231.46,8.12716538]
[1734008363653,2.1594,231.49,231.46,8.12716538]
[1734008363957,8.12716538,231.52,231.44,2.1597]
[1734008364149,8.12716538,231.52,231.44,10.28686538]
[1734008364352,2.1595,231.48,231.44,10.28686538]
[1734008364946,2.1597,231.46,231.41,4.6201]
[1734008365156,8.12716538,231.5,231.41,4.6201]
[1734008365157,8.12716538,231.5,231.43,8.12716538]
[1734008365555,2.1597,231.46,231.43,8.12716538]
[1734008365759,8.12716538,231.5,231.43,8.12716538]
[1734008367353,2.1598,231.45,231.43,8.12716538]
[1734008368952,8.12716538,231.48,231.39,13.30069933]
[1734008369160,2.46,231.47,231.39,8.12716538]
[1734008369459,8.12716538,231.46,231.38,1.4154]
[1734008370254,2.1601,231.41,231.39,8.12716538]
[1734008370858,8.12716538,231.46,231.39,8.12716538]
[1734008370859,2.1598,231.44,231.39,8.12716538]
[1734008371159,8.12716538,231.46,231.39,8.12716538]
[1734008372459,2.1602,231.41,231.38,1.4154]
[1734008373262,2.16,231.43,231.39,8.12716538]
[1734008373457,8.12716538,231.46,231.39,8.12716538]
[1734008373961,2.1599,231.44,231.4,2.1602]
[1734008375764,2.1599,231.43,231.4,2.1602]
[1734008376565,2.46,231.46,231.4,2.1602]
[1734008377365,8.12716538,231.48,231.4,2.1602]
[1734008377663,2.1598,231.44,231.4,2.1602]
[1734008377867,8.12716538,231.46,231.39,10.28736538]
[1734008378361,2.1598,231.44,231.39,10.28736538]
[1734008379163,2.1599,231.43,231.39,10.28736538]
[1734008381066,2.1599,231.43,231.4,2.1602]
[1734008381867,10.58716538,231.48,231.39,8.12716538]
[1734008382069,2.1598,231.45,231.41,10.28716538]
[1734008382567,2.1598,231.44,231.41,10.28716538]
[1734008385968,2.1597,231.45,231.41,10.28716538]
[1734008386171,10.58716538,231.48,231.42,2.1599]
[1734008386172,2.46,231.48,231.42,2.1599]
[1734008386367,2.46,231.49,231.43,8.12716538]
[1734008386563,4.6194,231.49,231.45,8.12716538]
[1734008387069,4.6194,231.49,231.45,10.28676538]
[1734008388870,2.1594,231.49,231.45,10.28676538]
[1734008391069,2.1594,231.49,231.45,2.1596]
[1734008391974,2.1594,231.49,231.46,2.1596]
[1734008392672,8.12716538,231.49,231.39,5.06115949]
[1734008392864,8.12716538,231.49,231.41,8.12716538]
[1734008393064,2.1596,231.47,231.41,8.12716538]
[1734008393365,8.12716538,231.49,231.41,8.12716538]
[1734008393569,2.1595,231.48,231.44,2.1598]
[1734008395172,8.12716538,231.49,231.42,2.16]
[1734008395173,2.1597,231.46,231.42,2.16]
[1734008395372,2.1597,231.46,231.42,10.28716538]
[1734008397874,2.1597,231.46,231.43,2.1599]